fUSD/lending_fUSD_20250421
["ID","MTS","AMOUNT","RATE_DAILY","PERIOD"]
[358568281,1745269164896,-1567.41,0.00052602,120]
[358568282,1745269164931,-765.04,0.00052602,120]
[358568283,1745269164966,-1636.3,0.00052602,120]
[358568284,1745269165002,-1871.84,0.00052602,120]
[358568285,1745269165038,-500.0,0.00052602,120]
[358568286,1745269165073,-500.0,0.00052602,120]
[358568287,1745269165108,-658.02,0.00052602,120]
[358568288,1745269165145,-1100.31,0.00052602,120]
[358568289,1745269165182,-1543.41,0.00052602,120]
[358568290,1745269165219,-500.0,0.00052602,120]
[358568291,1745269165256,-2906.42,0.00052602,120]
[358568292,1745269165292,-639.41980755,0.00052602,120]
[358568293,1745269165327,-621.72,0.00052602,120]
[358568294,1745269165365,-616.38,0.00052602,120]
[358568295,1745269165402,-829.97,0.00052602,120]
[358568296,1745269165612,-500.0,0.00052602,120]
[358568297,1745269165651,-506.68,0.00052602,120]
[358568298,1745269165690,-1256.12,0.00052602,120]
[358568299,1745269165726,-1178.06,0.00052602,120]
[358568300,1745269165763,-1134.03,0.00052602,120]
[358568301,1745269165801,-2781.12,0.00052602,120]
[358568302,1745269165838,-500.0,0.00052602,120]
[358568303,1745269165875,-585.8,0.00052602,120]
[358568304,1745269165909,-2212.34,0.00052602,120]
[358568305,1745269165947,-821.12,0.00052602,120]
[358568306,1745269165982,-598.39,0.00052602,120]
[358568307,1745269166019,-1195.18,0.00052602,120]
[358568308,1745269166056,-822.93,0.00052602,120]
[358568309,1745269166093,-1335.52,0.00052602,120]
[358568310,1745269166131,-1048.75,0.00052602,120]
[358568311,1745269166168,-3596.5,0.00052602,120]
[358568312,1745269166204,-707.27,0.00052602,120]
[358568313,1745269166242,-1275.11,0.00052602,120]
[358568314,1745269166279,-816.95,0.00052602,120]
[358568315,1745269166314,-2692.57,0.00052602,120]
[358568316,1745269166350,-1117.56,0.00052602,120]
[358568317,1745269166392,-1659.14,0.00052602,120]
[358568318,1745269166429,-1047.72,0.00052602,120]
[358568319,1745269166467,-500.0,0.00052602,120]
[358568320,1745269166507,-798.15,0.00052602,120]
[358568321,1745269166546,-981.52,0.00052602,120]
[358568322,1745269166584,-7757.78,0.00052602,120]
[358568323,1745269166622,-583.75,0.00052602,120]
[358568324,1745269166658,-1122.27,0.00052602,120]
[358568325,1745269166695,-1136.8,0.00052602,120]
[358568326,1745269166731,-1948.41,0.00052602,120]
[358568327,1745269166769,-1438.44,0.00052602,120]
[358568328,1745269166804,-655.96,0.00052602,120]
[358568329,1745269166841,-762.02,0.00052602,120]
[358568330,1745269166877,-1721.58,0.00052602,120]
[358568331,1745269166911,-3067.74,0.00052602,120]
[358568332,1745269166946,-1450.05,0.00052602,60]
[358568333,1745269166980,-720.4,0.00052602,120]
[358568334,1745269167015,-500.0,0.00052602,120]
[358568335,1745269167049,-500.0,0.00052602,120]
[358568336,1745269167084,-500.0,0.00052602,120]
[358568337,1745269167120,-2907.22,0.00052602,120]
[358568338,1745269167156,-4398.82,0.00052602,120]
[358568339,1745269167192,-500.0,0.00052602,120]
[358568340,1745269167228,-1910.22,0.00052602,120]
[358568341,1745269167264,-645.61,0.00052602,120]
[358568342,1745269167301,-3275.5,0.00052602,120]
[358568343,1745269167337,-941.01,0.00052602,120]
[358568344,1745269167373,-2831.35,0.00052602,120]
[358568345,1745269167408,-1070.05,0.00052602,120]
[358568346,1745269167442,-500.0,0.00052602,120]
[358568347,1745269167477,-500.0,0.00052602,120]
[358568348,1745269167512,-594.19,0.00052602,120]
[358568349,1745269167548,-645.89,0.00052602,120]
[358568350,1745269167585,-1158.5,0.00052602,120]
[358568351,1745269167622,-500.0,0.00052602,120]
[358568352,1745269167657,-1573.28,0.00052602,120]
[358568353,1745269167692,-500.0,0.00052602,120]
[358568354,1745269167728,-583.29,0.00052602,120]
[358568355,1745269167762,-500.0,0.00052602,120]
[358568356,1745269167798,-834.44,0.00052602,120]
[358568357,1745269167833,-500.0,0.00052602,120]
[358568358,1745269167868,-1422.93,0.00052602,120]
[358568359,1745269167903,-973.17,0.00052602,120]
[358568360,1745269167940,-2437.85,0.00052602,120]
[358568361,1745269167977,-901.45,0.00052602,120]
[358568362,1745269168016,-997.67,0.00052602,120]
[358568363,1745269168054,-783.77,0.00052602,120]
[358568364,1745269168092,-3240.43,0.00052602,120]
[358568365,1745269168131,-1596.74,0.00052602,120]
[358568366,1745269168169,-518.73,0.00052602,120]
[358568367,1745269168206,-2454.7,0.00052602,120]
[358568368,1745269168243,-919.49,0.00052602,120]
[358568369,1745269168278,-500.0,0.00052602,120]
[358568370,1745269168313,-7835.4,0.00052602,120]
[358568371,1745269168347,-804.59,0.00052602,120]
[358568372,1745269168388,-877.83,0.00052602,120]
[358568373,1745269168425,-7213.9,0.00052602,120]
[358568374,1745269168462,-1375.34,0.00052602,120]
[358568375,1745269168501,-963.95,0.00052602,120]
[358568376,1745269168538,-1289.89,0.00052602,120]
[358568377,1745269168574,-1393.67,0.00052602,120]
[358568378,1745269168612,-864.57,0.00052602,120]
[358568379,1745269168650,-1022.68,0.00052602,120]
[358568380,1745269168686,-1100.11,0.00052602,118]
[358568381,1745269168723,-569.75,0.00052602,120]
[358568382,1745269168760,-1668.15,0.00052602,120]
[358568383,1745269168795,-859.56,0.00052602,120]
[358568384,1745269168830,-1952.74,0.00052602,120]
[358568385,1745269168865,-511.37,0.00052602,120]
[358568386,1745269168900,-662.83,0.00052602,120]
[358568387,1745269168936,-1343.12,0.00052602,120]
[358568388,1745269168972,-574.9,0.00052602,120]
[358568389,1745269169009,-1348.97,0.00052602,120]
[358568390,1745269169043,-868.91,0.00052602,120]
[358568391,1745269169245,-2236.11,0.00052602,120]
[358568392,1745269169282,-561.55,0.00052602,120]
[358568393,1745269169318,-408.05195788,0.00052602,120]
[358568394,1745269169356,-1248.18,0.00052602,120]
[358568395,1745269169396,-996.82,0.00052602,120]
[358568396,1745269169432,-1058.05,0.00052602,120]
[358568397,1745269169468,-2581.69,0.00052602,120]
[358568398,1745269169503,-500.0,0.00052602,120]
[358568399,1745269169538,-1410.47,0.00052602,120]
[358568400,1745269169572,-508.66,0.00052602,120]
[358568401,1745269169607,-743.94,0.00052602,120]
[358568402,1745269169642,-1494.95,0.00052602,120]
[358568403,1745269169676,-955.73,0.00052602,120]
[358568404,1745269169711,-2301.25,0.00052602,120]
[358568405,1745269169745,-500.0,0.00052602,120]
[358568406,1745269169779,-500.0,0.00052602,120]
[358568407,1745269169814,-1053.78,0.00052602,120]
[358568408,1745269169847,-1074.12,0.00052602,120]
[358568409,1745269169884,-1020.13,0.00052602,120]
[358568410,1745269169921,-674.89,0.00052602,120]
[358568411,1745269169955,-1637.73,0.00052602,120]
[358568412,1745269169991,-889.4,0.00052602,120]
[358568413,1745269170028,-500.0,0.00052602,120]
[358568414,1745269170064,-1570.7,0.00052602,120]
[358568415,1745269170100,-2220.57,0.00052602,120]
[358568416,1745269170137,-2278.19,0.00052602,120]
[358568417,1745269170174,-1605.45,0.00052602,120]
[358568418,1745269170211,-1339.26,0.00052602,120]
[358568419,1745269170248,-500.0,0.00052602,120]
[358568420,1745269170286,-1056.06,0.00052602,120]
[358568421,1745269170323,-1579140.06945835,0.000528,120]
[358568422,1745269170362,-2950.2,0.0005296,40]
[358568423,1745269170406,-2469.92509726,0.00053,53]
[358568424,1745269187362,-2289.63,0.00049315,120]
[358568425,1745269187405,-668.65,0.00049315,60]
[358568426,1745269187447,-1451.0,0.00049315,120]
[358568427,1745269187483,-1561.76,0.00049315,120]
[358568428,1745269187519,-891.42,0.00049315,120]
[358568429,1745269187555,-578.81,0.00049315,120]
[358568430,1745269187594,-153.0,0.00049589,60]
[358568431,1745269187629,-153.0,0.00049589,60]
[358568432,1745269187661,-153.0,0.00049589,60]
[358568433,1745269187694,-153.0,0.00049589,60]
[358568434,1745269187730,-153.0,0.00049589,60]
[358568435,1745269187764,-153.0,0.00049589,60]
[358568436,1745269187797,-153.0,0.00049589,60]
[358568437,1745269187830,-153.0,0.00049589,60]
[358568438,1745269187865,-153.0,0.00049589,60]
[358568439,1745269187901,-153.0,0.00049589,60]
[358568440,1745269187937,-153.0,0.00049589,60]
[358568441,1745269187977,-153.0,0.00049589,60]
[358568442,1745269188015,-153.0,0.00049589,60]
[358568443,1745269188053,-153.0,0.00049589,60]
[358568444,1745269188091,-153.0,0.00049589,60]
[358568445,1745269188128,-153.0,0.00049589,60]
[358568446,1745269188167,-153.0,0.00049589,60]
[358568447,1745269188204,-153.0,0.00049589,60]
[358568448,1745269188239,-153.0,0.00049589,60]
[358568449,1745269188275,-153.0,0.00049589,60]
[358568450,1745269188310,-153.0,0.00049589,60]
[358568451,1745269188351,-153.0,0.00049589,60]
[358568452,1745269188395,-153.0,0.00049589,60]
[358568453,1745269188437,-153.0,0.00049589,60]
[358568454,1745269188478,-153.0,0.00049589,60]
[358568455,1745269188519,-153.0,0.00049589,60]
[358568456,1745269188560,-153.0,0.00049589,60]
[358568457,1745269188597,-153.0,0.00049589,60]
[358568458,1745269188633,-153.0,0.00049589,60]
[358568459,1745269188669,-153.0,0.00049589,60]
[358568460,1745269188705,-153.0,0.00049589,60]
[358568461,1745269188743,-153.0,0.00049589,60]
[358568462,1745269188783,-153.0,0.00049589,60]
[358568463,1745269188820,-153.0,0.00049589,60]
[358568464,1745269188856,-153.0,0.00049589,60]
[358568465,1745269188889,-153.0,0.00049589,60]
[358568466,1745269188922,-153.0,0.00049589,60]
[358568467,1745269188954,-153.0,0.00049589,60]
[358568468,1745269189162,-153.0,0.00049589,60]
[358568469,1745269189198,-153.0,0.00049589,60]
[358568470,1745269189235,-153.0,0.00049589,60]
[358568471,1745269189270,-153.0,0.00049589,60]
[358568472,1745269189304,-153.0,0.00049589,60]
[358568473,1745269189340,-153.0,0.00049589,60]
[358568474,1745269189376,-153.0,0.00049589,60]
[358568475,1745269189411,-153.0,0.00049589,60]
[358568476,1745269189446,-153.0,0.00049589,60]
[358568477,1745269189482,-153.0,0.00049589,60]
[358568478,1745269189515,-153.0,0.00049589,60]
[358568479,1745269189550,-153.0,0.00049589,60]
[358568480,1745269189583,-153.0,0.00049589,60]
[358568481,1745269189617,-153.0,0.00049589,60]
[358568482,1745269189649,-153.0,0.00049589,60]
[358568483,1745269189682,-153.0,0.00049589,60]
[358568484,1745269189715,-153.0,0.00049589,60]
[358568485,1745269189748,-153.0,0.00049589,60]
[358568486,1745269189782,-153.0,0.00049589,60]
[358568487,1745269189815,-153.0,0.00049589,60]
[358568488,1745269189849,-153.0,0.00049589,60]
[358568489,1745269189883,-153.0,0.00049589,60]
[358568490,1745269189916,-153.0,0.00049589,60]
[358568491,1745269189950,-153.0,0.00049589,60]
[358568492,1745269189985,-2289.63,0.00049863,120]
[358568493,1745269190021,-668.65,0.00049863,60]
[358568494,1745269190056,-1451.0,0.00049863,120]
[358568495,1745269190092,-1561.76,0.00049863,120]
[358568496,1745269190128,-891.42,0.00049863,120]
[358568497,1745269190164,-578.81,0.00049863,120]
[358568498,1745269190200,-500.0,0.00049999,120]
[358568499,1745269190236,-500.0,0.00049999,120]
[358568500,1745269190270,-500.0,0.00049999,120]
[358568501,1745269190304,-500.0,0.00049999,120]
[358568502,1745269190341,-500.0,0.00049999,120]
[358568503,1745269190381,-444.68874148,0.00049999,120]
[358568504,1745269190420,-6796.36,0.0005,60]
[358568505,1745269190458,-2289.63,0.0005041,120]
[358568506,1745269190493,-668.65,0.0005041,60]
[358568507,1745269190530,-1451.0,0.0005041,120]
[358568508,1745269190580,-1561.76,0.0005041,120]
[358568509,1745269190621,-891.42,0.0005041,120]
[358568510,1745269190659,-578.81,0.0005041,120]
[358568511,1745269190698,-2998.83,0.00050958,120]
[358568512,1745269190734,-2289.63,0.00050958,120]
[358568513,1745269190770,-668.65,0.00050958,60]
[358568514,1745269190806,-1451.0,0.00050958,120]
[358568515,1745269190840,-1561.76,0.00050958,120]
[358568516,1745269190875,-891.42,0.00050958,120]
[358568517,1745269190908,-578.81,0.00050958,120]
[358568518,1745269190943,-150.0,0.00051505,120]
[358568519,1745269190978,-150.0,0.00051505,120]
[358568520,1745269191016,-831.47,0.00051506,120]
[358568521,1745269191055,-2998.83,0.00051506,120]
[358568522,1745269191089,-2289.63,0.00051506,120]
[358568523,1745269191123,-668.65,0.00051506,60]
[358568524,1745269191160,-1451.0,0.00051506,120]
[358568525,1745269191198,-1561.76,0.00051506,120]
[358568526,1745269191245,-578.81,0.00051506,120]
[358568527,1745269191283,-891.42,0.00051506,120]
[358568528,1745269191321,-2998.83,0.00052054,120]
[358568529,1745269191357,-831.47,0.00052054,120]
[358568530,1745269191397,-2289.63,0.00052054,120]
[358568531,1745269191437,-668.65,0.00052054,60]
[358568532,1745269191474,-1451.0,0.00052054,120]
[358568533,1745269191509,-1561.76,0.00052054,120]
[358568534,1745269191546,-578.81,0.00052054,120]
[358568535,1745269191582,-891.42,0.00052054,120]
[358568536,1745269191618,-2998.83,0.00052602,120]
[358568537,1745269191653,-831.47,0.00052602,120]
[358568538,1745269191687,-2289.63,0.00052602,120]
[358568539,1745269191721,-668.65,0.00052602,60]
[358568540,1745269191756,-1451.0,0.00052602,120]
[358568541,1745269191791,-1561.76,0.00052602,120]
[358568542,1745269191829,-891.42,0.00052602,120]
[358568543,1745269191864,-578.81,0.00052602,120]
[358568544,1745269191906,-47530.07490274,0.00053,53]
[358568545,1745269191943,-900.0,0.00053,54]
[358568546,1745269191980,-200.0,0.00053,92]
[358568547,1745269192015,-500.0,0.00053,120]
[358568548,1745269192050,-200.0,0.00053,92]
[358568549,1745269192368,-200.0,0.00053,92]
[358568550,1745269192408,-6796.36,0.00053,60]
[358568551,1745269192450,-629.509786,0.0005315,120]
[358568552,1745269192488,-571.892923,0.0005315,120]
[358568553,1745269192524,-1890.77893,0.0005315,120]
[358568554,1745269192558,-847.27,0.0005315,120]
[358568555,1745269192591,-980.71,0.0005315,120]
[358568556,1745269192624,-2474.26,0.0005315,120]
[358568557,1745269192656,-2340.33,0.0005315,120]
[358568558,1745269192691,-710.84,0.0005315,120]
[358568559,1745269192724,-519.36,0.0005315,120]
[358568560,1745269192773,-500.0,0.0005315,120]
[358568561,1745269192810,-500.0,0.0005315,120]
[358568562,1745269192845,-858.69,0.0005315,120]
[358568563,1745269192879,-250.0,0.0005315,120]
[358568564,1745269192913,-1419.16,0.0005315,120]
[358568565,1745269192947,-500.0,0.0005315,120]
[358568566,1745269192982,-1001.34,0.0005315,120]
[358568567,1745269193015,-500.0,0.0005315,120]
[358568568,1745269193054,-604.48,0.0005315,120]
[358568569,1745269193090,-1198.33,0.0005315,120]
[358568570,1745269193126,-951.19,0.0005315,120]
[358568571,1745269193161,-1221.11,0.0005315,120]
[358568572,1745269193197,-525.77,0.0005315,120]
[358568573,1745269193232,-1317.58,0.0005315,120]
[358568574,1745269193267,-797.08,0.0005315,120]
[358568575,1745269193302,-1174.25,0.0005315,120]
[358568576,1745269193336,-672.04,0.0005315,120]
[358568577,1745269193370,-690.93,0.0005315,120]
[358568578,1745269193412,-593.3,0.0005315,120]
[358568579,1745269193447,-1385.14,0.0005315,120]
[358568580,1745269193484,-831.53,0.0005315,120]
[358568581,1745269193520,-772.47,0.0005315,120]
[358568582,1745269193559,-1494.4,0.0005315,120]
[358568583,1745269193596,-623.44,0.0005315,120]
[358568584,1745269193632,-500.0,0.0005315,120]
[358568585,1745269193667,-594.29721406,0.0005315,120]
[358568586,1745269193702,-847.59,0.0005315,120]
[358568587,1745269193738,-1480.63,0.0005315,120]
[358568588,1745269193775,-594.54,0.0005315,120]
[358568589,1745269193812,-881.75,0.0005315,120]
[358568590,1745269193850,-1003.48,0.0005315,120]
[358568591,1745269193886,-583.01,0.0005315,120]
[358568592,1745269193921,-500.0,0.0005315,120]
[358568593,1745269193957,-1222.77,0.0005315,120]
[358568594,1745269193993,-546.21,0.0005315,120]
[358568595,1745269194033,-500.0,0.0005315,120]
[358568596,1745269194074,-500.0,0.0005315,120]
[358568597,1745269194111,-706.63,0.0005315,120]
[358568598,1745269194146,-540.95,0.0005315,120]
[358568599,1745269194183,-956.86,0.0005315,120]
[358568600,1745269194219,-884.65,0.0005315,120]
[358568601,1745269194258,-863.91,0.0005315,120]
[358568602,1745269194296,-826.96,0.0005315,120]
[358568603,1745269194335,-786.17,0.0005315,120]
[358568604,1745269194377,-814.8,0.0005315,120]
[358568605,1745269194416,-514.13,0.0005315,120]
[358568606,1745269194455,-1290.34,0.0005315,120]
[358568607,1745269194493,-743.09,0.0005315,120]
[358568608,1745269194532,-1183.26,0.0005315,120]
[358568609,1745269194570,-579.09,0.0005315,120]
[358568610,1745269194606,-1099.51,0.0005315,120]
[358568611,1745269194642,-947.57,0.0005315,120]
[358568612,1745269194677,-904.67,0.0005315,120]
[358568613,1745269194713,-500.0,0.0005315,120]
[358568614,1745269194753,-1533.1,0.0005315,120]
[358568615,1745269194790,-717.75,0.0005315,120]
[358568616,1745269194826,-500.0,0.0005315,120]
[358568617,1745269194862,-729.68,0.0005315,120]
[358568618,1745269194898,-601.4,0.0005315,120]
[358568619,1745269194934,-779.43,0.0005315,120]
[358568620,1745269194971,-1738.61,0.0005315,120]
[358568621,1745269195007,-706.3,0.0005315,120]
[358568622,1745269195044,-500.0,0.0005315,120]
[358568623,1745269195081,-612.25,0.0005315,120]
[358568624,1745269195116,-1772.65,0.0005315,120]
[358568625,1745269195152,-501.84,0.0005315,120]
[358568626,1745269195187,-1438.84,0.0005315,120]
[358568627,1745269195221,-927.9,0.0005315,120]
[358568628,1745269195255,-1567.41,0.0005315,120]
[358568629,1745269195288,-765.04,0.0005315,120]
[358568630,1745269195322,-1636.3,0.0005315,120]
[358568631,1745269195356,-1871.84,0.0005315,120]
[358568632,1745269195394,-500.0,0.0005315,120]
[358568633,1745269195702,-473.98629583,0.0005315,120]
[358568634,1745269195741,-658.02,0.0005315,120]
[358568635,1745269195779,-1100.31,0.0005315,120]
[358568636,1745269195817,-1543.41,0.0005315,120]
[358568637,1745269195852,-500.0,0.0005315,120]
[358568638,1745269195888,-2906.42,0.0005315,120]
[358568639,1745269195925,-621.72,0.0005315,120]
[358568640,1745269195961,-616.38,0.0005315,120]
[358568641,1745269195998,-829.97,0.0005315,120]
[358568642,1745269196036,-623.48,0.0005315,120]
[358568643,1745269196075,-506.68,0.0005315,120]
[358568644,1745269196113,-1256.12,0.0005315,120]
[358568645,1745269196153,-1178.06,0.0005315,120]
[358568646,1745269196192,-1134.03,0.0005315,120]
[358568647,1745269196234,-585.8,0.0005315,120]
[358568648,1745269196276,-821.12,0.0005315,120]
[358568649,1745269196319,-822.93,0.0005315,120]
[358568650,1745269196358,-1335.52,0.0005315,120]
[358568651,1745269196410,-1048.75,0.0005315,120]
[358568652,1745269196454,-1275.11,0.0005315,120]
[358568653,1745269196494,-816.95,0.0005315,120]
[358568654,1745269196534,-1659.14,0.0005315,120]
[358568655,1745269196573,-500.0,0.0005315,120]
[358568656,1745269196611,-583.75,0.0005315,120]
[358568657,1745269196649,-1122.27,0.0005315,120]
[358568658,1745269196687,-1948.41,0.0005315,120]
[358568659,1745269196723,-655.96,0.0005315,120]
[358568660,1745269196760,-762.02,0.0005315,120]
[358568661,1745269196797,-720.4,0.0005315,120]
[358568662,1745269196834,-500.0,0.0005315,120]
[358568663,1745269196869,-500.0,0.0005315,120]
[358568664,1745269196906,-941.01,0.0005315,120]
[358568665,1745269196943,-512.05656635,0.0005315,120]
[358568666,1745269196980,-645.89,0.0005315,120]
[358568667,1745269197018,-1158.5,0.0005315,120]
[358568668,1745269197058,-500.0,0.0005315,120]
[358568669,1745269197098,-973.17,0.0005315,120]
[358568670,1745269197135,-901.45,0.0005315,120]
[358568671,1745269197172,-997.67,0.0005315,120]
[358568672,1745269197210,-783.77,0.0005315,120]
[358568673,1745269197249,-3240.43,0.0005315,120]
[358568674,1745269197286,-1596.74,0.0005315,120]
[358568675,1745269197323,-919.49,0.0005315,120]
[358568676,1745269197360,-500.0,0.0005315,120]
[358568677,1745269197402,-804.59,0.0005315,120]
[358568678,1745269197438,-877.83,0.0005315,120]
[358568679,1745269197476,-1289.89,0.0005315,120]
[358568680,1745269197515,-1393.67,0.0005315,120]
[358568681,1745269197554,-864.57,0.0005315,120]
[358568682,1745269197589,-1022.68,0.0005315,120]
[358568683,1745269197626,-1668.15,0.0005315,120]
[358568684,1745269197664,-859.56,0.0005315,120]
[358568685,1745269197701,-1952.74,0.0005315,120]
[358568686,1745269197739,-511.37,0.0005315,120]
[358568687,1745269197777,-662.83,0.0005315,120]
[358568688,1745269197815,-574.9,0.0005315,120]
[358568689,1745269197854,-1348.97,0.0005315,120]
[358568690,1745269197892,-561.55,0.0005315,120]
[358568691,1745269197928,-996.82,0.0005315,120]
[358568692,1745269197966,-1058.05,0.0005315,120]
[358568693,1745269198003,-2581.69,0.0005315,120]
[358568694,1745269198040,-500.0,0.0005315,120]
[358568695,1745269198076,-1410.47,0.0005315,120]
[358568696,1745269198111,-508.66,0.0005315,120]
[358568697,1745269198148,-743.94,0.0005315,120]
[358568698,1745269198183,-1494.95,0.0005315,120]
[358568699,1745269198217,-955.73,0.0005315,120]
[358568700,1745269198252,-594.21790032,0.0005315,120]
[358568701,1745269198286,-500.0,0.0005315,120]
[358568702,1745269198320,-1053.78,0.0005315,120]
[358568703,1745269198353,-1074.12,0.0005315,120]
[358568704,1745269198389,-1020.13,0.0005315,120]
[358568705,1745269198424,-674.89,0.0005315,120]
[358568706,1745269198460,-1637.73,0.0005315,120]
[358568707,1745269198496,-889.4,0.0005315,120]
[358568708,1745269198533,-500.0,0.0005315,120]
[358568709,1745269198569,-1570.7,0.0005315,120]
[358568710,1745269198605,-2220.57,0.0005315,120]
[358568711,1745269198640,-2278.19,0.0005315,120]
[358568712,1745269198675,-1605.45,0.0005315,120]
[358568713,1745269198709,-1339.26,0.0005315,120]
[358568714,1745269198901,-500.0,0.0005315,120]
[358568715,1745269198939,-1056.06,0.0005315,120]
[358568716,1745269198976,-2998.83,0.0005315,120]
[358568717,1745269199015,-831.47,0.0005315,120]
[358568718,1745269199052,-2289.63,0.0005315,120]
[358568719,1745269199089,-668.65,0.0005315,60]
[358568720,1745269199128,-1451.0,0.0005315,120]
[358568721,1745269199165,-1561.76,0.0005315,120]
[358568722,1745269199202,-891.42,0.0005315,120]
[358568723,1745269199241,-578.81,0.0005315,120]
[358568724,1745269199279,-150.0,0.00053418,120]
[358568725,1745269199317,-629.509786,0.00053698,120]
[358568726,1745269199355,-161.043554,0.00053698,120]
[358568727,1745269199395,-571.892923,0.00053698,120]
[358568728,1745269199433,-1890.77893,0.00053698,120]
[358568729,1745269199469,-847.27,0.00053698,120]
[358568730,1745269199508,-980.71,0.00053698,120]
[358568731,1745269199545,-2474.26,0.00053698,120]
[358568732,1745269199584,-2340.33,0.00053698,120]
[358568733,1745269199623,-710.84,0.00053698,120]
[358568734,1745269199659,-519.36,0.00053698,120]
[358568735,1745269199698,-464.92133244,0.00053698,120]
[358568736,1745269199734,-500.0,0.00053698,120]
[358568737,1745269199772,-858.69,0.00053698,120]
[358568738,1745269199811,-1419.16,0.00053698,120]
[358568739,1745269199849,-500.0,0.00053698,120]
[358568740,1745269199885,-1001.34,0.00053698,120]
[358568741,1745269199920,-500.0,0.00053698,120]
[358568742,1745269199958,-604.48,0.00053698,120]
[358568743,1745269199994,-1198.33,0.00053698,120]
[358568744,1745269200034,-951.19,0.00053698,120]
[358568745,1745269200074,-1221.11,0.00053698,120]
[358568746,1745269200113,-525.77,0.00053698,120]
[358568747,1745269200151,-1317.58,0.00053698,120]
[358568748,1745269200192,-797.08,0.00053698,120]
[358568749,1745269200233,-1174.25,0.00053698,120]
[358568750,1745269200273,-672.04,0.00053698,120]
[358568751,1745269200316,-690.93,0.00053698,120]
[358568752,1745269200356,-593.3,0.00053698,120]
[358568753,1745269200398,-1385.14,0.00053698,120]
[358568754,1745269200442,-831.53,0.00053698,120]
[358568755,1745269200484,-772.47,0.00053698,120]
[358568756,1745269200523,-1494.4,0.00053698,120]
[358568757,1745269200563,-623.44,0.00053698,120]
[358568758,1745269200600,-261.47266845,0.00053698,120]
[358568759,1745269200638,-847.59,0.00053698,120]
[358568760,1745269200675,-1480.63,0.00053698,120]
[358568761,1745269200711,-594.54,0.00053698,120]
[358568762,1745269200747,-881.75,0.00053698,120]
[358568763,1745269200782,-1003.48,0.00053698,120]
[358568764,1745269200816,-583.01,0.00053698,120]
[358568765,1745269200852,-508.47856931,0.00053698,120]
[358568766,1745269200888,-1222.77,0.00053698,120]
[358568767,1745269200929,-546.21,0.00053698,120]
[358568768,1745269200967,-500.0,0.00053698,120]
[358568769,1745269201004,-490.39582738,0.00053698,120]
[358568770,1745269201042,-706.63,0.00053698,120]
[358568771,1745269201079,-540.95,0.00053698,120]
[358568772,1745269201116,-956.86,0.00053698,120]
[358568773,1745269201154,-884.65,0.00053698,120]
[358568774,1745269201192,-863.91,0.00053698,120]
[358568775,1745269201230,-826.96,0.00053698,120]
[358568776,1745269201268,-152.830921,0.00053698,120]
[358568777,1745269201307,-786.17,0.00053698,120]
[358568778,1745269201343,-814.8,0.00053698,120]
[358568779,1745269201381,-514.13,0.00053698,120]
[358568780,1745269201419,-1290.34,0.00053698,120]